fUST/lending_fUST_20241202
["ID","MTS","AMOUNT","RATE_DAILY","PERIOD"]
[343924570,1733074249451,-975.75,0.00029041,3]
[343924571,1733074249462,-500.0,0.00029041,3]
[343924572,1733074249473,-500.0,0.00029041,3]
[343924573,1733074249484,-594.46,0.00029041,3]
[343924574,1733074249498,-510.23120372,0.00029041,3]
[343924575,1733074249509,-500.0,0.00029041,3]
[343924576,1733074249520,-1526.35,0.00029041,3]
[343924577,1733074249530,-500.0,0.00029041,3]
[343924578,1733074249542,-500.0,0.00029041,3]
[343924579,1733074249553,-500.0,0.00029041,3]
[343924580,1733074249564,-500.0,0.00029041,3]
[343924581,1733074249575,-586.78,0.00029041,3]
[343924582,1733074249587,-500.0,0.00029041,3]
[343924583,1733074249598,-550.4,0.00029041,3]
[343924584,1733074249609,-500.0,0.00029041,3]
[343924585,1733074249620,-6141.8,0.00029041,3]
[343924586,1733074249631,-500.0,0.00029041,3]
[343924587,1733074249642,-512.77,0.00029041,3]
[343924588,1733074249653,-20652.31,0.00029041,3]
[343924589,1733074249665,-500.0,0.00029041,3]
[343924590,1733074249676,-500.0,0.00029041,3]
[343924591,1733074249687,-500.0,0.00029041,3]
[343924592,1733074249699,-1059.54,0.00029041,3]
[343924593,1733074249709,-500.0,0.00029041,3]
[343924594,1733074249720,-514.96,0.00029041,3]
[343924595,1733074249732,-500.0,0.00029041,3]
[343924596,1733074249744,-3190.15,0.00029041,3]
[343924597,1733074249756,-500.0,0.00029041,3]
[343924598,1733074249768,-500.0,0.00029041,3]
[343924599,1733074249779,-2621.93,0.00029041,3]
[343924600,1733074249791,-500.0,0.00029041,3]
[343924601,1733074249802,-704.53,0.00029041,3]
[343924602,1733074249814,-642.14,0.00029041,3]
[343924603,1733074249825,-500.0,0.00029041,3]
[343924604,1733074249837,-500.0,0.00029041,3]
[343924605,1733074249848,-500.0,0.00029041,3]
[343924606,1733074249968,-500.0,0.00029041,3]
[343924607,1733074249978,-500.0,0.00029041,3]
[343924608,1733074249988,-302.4419051,0.00029121,2]
[343924609,1733074250000,-1500.0,0.00029222,5]
[343924610,1733074250010,-2140.99,0.000293,120]
[343924611,1733074250020,-6374.61451485,0.00029315,2]
[343924612,1733074250030,-512.78760422,0.00029315,3]
[343924613,1733074250041,-151.0,0.00029315,7]
[343924614,1733074250050,-151.0,0.00029315,7]
[343924615,1733074250059,-151.0,0.00029315,7]
[343924616,1733074250069,-500.0,0.00029315,3]
[343924617,1733074250078,-500.0,0.00029315,3]
[343924618,1733074250087,-874.96,0.00029315,3]
[343924619,1733074250096,-500.0,0.00029315,3]
[343924620,1733074250105,-500.0,0.00029315,3]
[343924621,1733074250115,-500.0,0.00029315,3]
[343924622,1733074250124,-500.0,0.00029315,3]
[343924623,1733074250133,-500.0,0.00029315,3]
[343924624,1733074250142,-500.0,0.00029315,3]
[343924625,1733074250151,-850.13,0.00029315,3]
[343924626,1733074250160,-621.45,0.00029315,3]
[343924627,1733074250170,-627.68,0.00029315,3]
[343924628,1733074250183,-500.0,0.00029315,3]
[343924629,1733074250192,-500.0,0.00029315,3]
[343924630,1733074250201,-975.75,0.00029315,3]
[343924631,1733074250211,-500.0,0.00029315,3]
[343924632,1733074250221,-500.0,0.00029315,3]
[343924633,1733074250230,-594.46,0.00029315,3]
[343924634,1733074250239,-500.0,0.00029315,3]
[343924635,1733074250256,-1526.35,0.00029315,3]
[343924636,1733074250265,-500.0,0.00029315,3]
[343924637,1733074250274,-500.0,0.00029315,3]
[343924638,1733074250283,-500.0,0.00029315,3]
[343924639,1733074250292,-500.0,0.00029315,3]
[343924640,1733074250302,-586.78,0.00029315,3]
[343924641,1733074250311,-500.0,0.00029315,3]
[343924642,1733074250320,-550.4,0.00029315,3]
[343924643,1733074250329,-500.0,0.00029315,3]
[343924644,1733074250339,-6141.8,0.00029315,3]
[343924645,1733074250348,-500.0,0.00029315,3]
[343924646,1733074250357,-512.77,0.00029315,3]
[343924647,1733074250366,-20652.31,0.00029315,3]
[343924648,1733074250375,-500.0,0.00029315,3]
[343924649,1733074250384,-500.0,0.00029315,3]
[343924650,1733074250393,-500.0,0.00029315,3]
[343924651,1733074250402,-1059.54,0.00029315,3]
[343924652,1733074250412,-500.0,0.00029315,3]
[343924653,1733074250421,-514.96,0.00029315,3]
[343924654,1733074250430,-500.0,0.00029315,3]
[343924655,1733074250439,-3190.15,0.00029315,3]
[343924656,1733074250448,-204.04958606,0.00029315,3]
[343924657,1733074250457,-500.0,0.00029315,3]
[343924658,1733074250467,-2621.93,0.00029315,3]
[343924659,1733074250476,-500.0,0.00029315,3]
[343924660,1733074250486,-704.53,0.00029315,3]
[343924661,1733074250495,-642.14,0.00029315,3]
[343924662,1733074250504,-500.0,0.00029315,3]
[343924663,1733074250514,-500.0,0.00029315,3]
[343924664,1733074250523,-500.0,0.00029315,3]
[343924665,1733074250532,-500.0,0.00029315,3]
[343924666,1733074250541,-500.0,0.00029315,3]
[343924667,1733074250551,-1000.0,0.00029321,5]
[343924668,1733074250560,-302.4419051,0.00029372,2]
[343924669,1733074250569,-433.0,0.00029473,2]
[343924670,1733074250579,-300.0,0.000295,2]
[343924671,1733074250589,-156.201792,0.00029589,7]
[343924672,1733074250598,-500.0,0.00029589,3]
[343924673,1733074250607,-500.0,0.00029589,3]
[343924674,1733074250616,-874.96,0.00029589,3]
[343924675,1733074250626,-500.0,0.00029589,3]
[343924676,1733074250635,-500.0,0.00029589,3]
[343924677,1733074250645,-500.0,0.00029589,3]
[343924678,1733074250654,-469.3542463,0.00029589,3]
[343924679,1733074250663,-500.0,0.00029589,3]
[343924680,1733074250673,-500.0,0.00029589,3]
[343924681,1733074250682,-850.13,0.00029589,3]
[343924682,1733074250691,-621.45,0.00029589,3]
[343924683,1733074250700,-627.68,0.00029589,3]
[343924684,1733074250710,-500.0,0.00029589,3]
[343924685,1733074250719,-186.13005465,0.00029589,3]
[343924686,1733074250731,-975.75,0.00029589,3]
[343924687,1733074250741,-500.0,0.00029589,3]
[343924688,1733074250752,-637.93,0.00029589,3]
[343924689,1733074250763,-594.46,0.00029589,3]
[343924690,1733074250773,-500.0,0.00029589,3]
[343924691,1733074250783,-1526.35,0.00029589,3]
[343924692,1733074250792,-500.0,0.00029589,3]
[343924693,1733074250801,-500.0,0.00029589,3]
[343924694,1733074250811,-500.0,0.00029589,3]
[343924695,1733074250821,-500.0,0.00029589,3]
[343924696,1733074250831,-586.78,0.00029589,3]
[343924697,1733074250840,-500.0,0.00029589,3]
[343924698,1733074250849,-550.4,0.00029589,3]
[343924699,1733074250859,-500.0,0.00029589,3]
[343924700,1733074250868,-6141.8,0.00029589,3]
[343924701,1733074250878,-500.0,0.00029589,3]
[343924702,1733074250887,-512.77,0.00029589,3]
[343924703,1733074250898,-20652.31,0.00029589,3]
[343924704,1733074250908,-500.0,0.00029589,3]
[343924705,1733074250918,-500.0,0.00029589,3]
[343924706,1733074250928,-500.0,0.00029589,3]
[343924707,1733074250938,-1059.54,0.00029589,3]
[343924708,1733074250948,-500.0,0.00029589,3]
[343924709,1733074250957,-514.96,0.00029589,3]
[343924710,1733074250967,-500.0,0.00029589,3]
[343924711,1733074250976,-3190.15,0.00029589,3]
[343924712,1733074250985,-500.0,0.00029589,3]
[343924713,1733074250995,-2621.93,0.00029589,3]
[343924714,1733074251005,-500.0,0.00029589,3]
[343924715,1733074251014,-704.53,0.00029589,3]
[343924716,1733074251023,-642.14,0.00029589,3]
[343924717,1733074251032,-500.0,0.00029589,3]
[343924718,1733074251042,-500.0,0.00029589,3]
[343924719,1733074251051,-500.0,0.00029589,3]
[343924720,1733074251060,-451.72112446,0.00029589,3]
[343924721,1733074251069,-500.0,0.00029589,3]
[343924722,1733074251078,-157.62056318,0.00029601,2]
[343924723,1733074251088,-302.4419051,0.00029622,2]
[343924724,1733074251097,-17605.3002,0.000298,120]
[343924725,1733074251106,-151.0,0.000298,7]
[343924726,1733074251116,-151.0,0.000298,7]
[343924727,1733074251125,-500.0,0.00029863,3]
[343924728,1733074251135,-500.0,0.00029863,3]
[343924729,1733074251144,-874.96,0.00029863,3]
[343924730,1733074251154,-500.0,0.00029863,3]
[343924731,1733074251163,-500.0,0.00029863,3]
[343924732,1733074251173,-571.59321633,0.00029863,3]
[343924733,1733074251187,-500.0,0.00029863,3]
[343924734,1733074251196,-500.0,0.00029863,3]
[343924735,1733074251206,-850.13,0.00029863,3]
[343924736,1733074251217,-621.45,0.00029863,3]
[343924737,1733074251227,-627.68,0.00029863,3]
[343924738,1733074251236,-500.0,0.00029863,3]
[343924739,1733074251248,-975.75,0.00029863,3]
[343924740,1733074251259,-207.62460779,0.00029863,3]
[343924741,1733074251269,-594.46,0.00029863,3]
[343924742,1733074251278,-500.0,0.00029863,3]
[343924743,1733074251287,-1526.35,0.00029863,3]
[343924744,1733074251296,-500.0,0.00029863,3]
[343924745,1733074251306,-500.0,0.00029863,3]
[343924746,1733074251316,-283.26056282,0.00029863,3]
[343924747,1733074251325,-500.0,0.00029863,3]
[343924748,1733074251334,-586.78,0.00029863,3]
[343924749,1733074251344,-156.15687445,0.00029863,3]
[343924750,1733074251354,-550.4,0.00029863,3]
[343924751,1733074251363,-500.0,0.00029863,3]
[343924752,1733074251373,-6141.8,0.00029863,3]
[343924753,1733074251382,-500.0,0.00029863,3]
[343924754,1733074251391,-512.77,0.00029863,3]
[343924755,1733074251400,-20652.31,0.00029863,3]
[343924756,1733074251410,-500.0,0.00029863,3]
[343924757,1733074251420,-500.0,0.00029863,3]
[343924758,1733074251429,-500.0,0.00029863,3]
[343924759,1733074251439,-1059.54,0.00029863,3]
[343924760,1733074251448,-500.0,0.00029863,3]
[343924761,1733074251458,-514.96,0.00029863,3]
[343924762,1733074251467,-500.0,0.00029863,3]
[343924763,1733074251477,-3190.15,0.00029863,3]
[343924764,1733074251486,-500.0,0.00029863,3]
[343924765,1733074251497,-2621.93,0.00029863,3]
[343924766,1733074251506,-500.0,0.00029863,3]
[343924767,1733074251515,-704.53,0.00029863,3]
[343924768,1733074251524,-642.14,0.00029863,3]
[343924769,1733074251534,-500.0,0.00029863,3]
[343924770,1733074251544,-500.0,0.00029863,3]
[343924771,1733074251554,-500.0,0.00029863,3]
[343924772,1733074251564,-508.32058147,0.00029863,3]
[343924773,1733074251573,-302.4419051,0.00029873,2]
[343924774,1733074251584,-1449.8315274,0.0003,3]
[343924775,1733074251594,-988.64544001,0.0003,2]
[343924776,1733074251604,-1740.0,0.0003,2]
[343924777,1733074251613,-1740.0,0.0003,2]
[343924778,1733074251623,-1740.0,0.0003,2]
[343924779,1733074251632,-1740.0,0.0003,2]
[343924780,1733074251642,-1894.0,0.0003,2]
[343924781,1733074251651,-1891.0,0.0003,2]
[343924782,1733074251661,-1891.0,0.0003,2]
[343924783,1733074251670,-1891.0,0.0003,2]
[343924784,1733074251679,-2181.0,0.0003,2]
[343924785,1733074251689,-2177.0,0.0003,2]
[343924786,1733074251699,-2177.0,0.0003,2]
[343924787,1733074251709,-2177.0,0.0003,2]
[343924788,1733074251719,-2177.0,0.0003,2]
[343924789,1733074251728,-2177.0,0.0003,2]
[343924790,1733074251738,-233.0,0.0003,2]
[343924791,1733074251748,-151.0,0.00030019,7]
[343924792,1733074251758,-150.0,0.00030076,120]
[343924793,1733074251768,-302.4419051,0.00030123,2]
[343924794,1733074251778,-151.0,0.00030136,7]
[343924795,1733074251787,-167.87031,0.00030136,7]
[343924796,1733074251796,-387.56281248,0.00030136,3]
[343924797,1733074251805,-500.0,0.00030136,3]
[343924798,1733074251815,-874.96,0.00030136,3]
[343924799,1733074251824,-500.0,0.00030136,3]
[343924800,1733074251834,-500.0,0.00030136,3]
[343924801,1733074251843,-500.0,0.00030136,3]
[343924802,1733074251852,-500.0,0.00030136,3]
[343924803,1733074251862,-850.13,0.00030136,3]
[343924804,1733074251871,-621.45,0.00030136,3]
[343924805,1733074251881,-627.68,0.00030136,3]
[343924806,1733074251891,-350.02254396,0.00030136,3]
[343924807,1733074251900,-975.75,0.00030136,3]
[343924808,1733074251909,-594.46,0.00030136,3]
[343924809,1733074251919,-500.0,0.00030136,3]
[343924810,1733074251929,-1526.35,0.00030136,3]
[343924811,1733074251938,-384.06553326,0.00030136,3]
[343924812,1733074251948,-500.0,0.00030136,3]
[343924813,1733074251958,-500.0,0.00030136,3]
[343924814,1733074251968,-586.78,0.00030136,3]
[343924815,1733074251978,-550.4,0.00030136,3]
[343924816,1733074251988,-500.0,0.00030136,3]
[343924817,1733074251998,-6141.8,0.00030136,3]
[343924818,1733074252008,-500.0,0.00030136,3]
[343924819,1733074252018,-512.77,0.00030136,3]
[343924820,1733074252027,-20652.31,0.00030136,3]
[343924821,1733074252037,-500.0,0.00030136,3]
[343924822,1733074252046,-500.0,0.00030136,3]
[343924823,1733074252055,-639.45484355,0.00030136,3]
[343924824,1733074252065,-1059.54,0.00030136,3]
[343924825,1733074252074,-500.0,0.00030136,3]
[343924826,1733074252083,-514.96,0.00030136,3]
[343924827,1733074252092,-500.0,0.00030136,3]
[343924828,1733074252102,-3190.15,0.00030136,3]
[343924829,1733074252111,-500.0,0.00030136,3]
[343924830,1733074252120,-2621.93,0.00030136,3]
[343924831,1733074252131,-500.0,0.00030136,3]
[343924832,1733074252141,-704.53,0.00030136,3]
[343924833,1733074252151,-642.14,0.00030136,3]
[343924834,1733074252162,-500.0,0.00030136,3]
[343924835,1733074252172,-564.94869058,0.00030136,3]
[343924836,1733074252185,-500.0,0.00030136,3]
[343924837,1733074252195,-500.0,0.00030137,30]
[343924838,1733074252282,-1442.18882698,0.00030147,30]
[343924839,1733074252291,-195.29,0.000303,31]
[343924840,1733074252300,-255.90038983,0.00030322,5]
[343924841,1733074252310,-3204.3823668,0.00030374,2]
[343924842,1733074252320,-302.4419051,0.00030374,2]
[343924843,1733074252329,-165.374058,0.00030374,2]
[343924844,1733074252339,-2000.0,0.000304,3]
[343924845,1733074252347,-2000.0,0.000304,3]
[343924846,1733074252357,-151.0,0.0003041,7]
[343924847,1733074252366,-500.0,0.0003041,3]
[343924848,1733074252376,-874.96,0.0003041,3]
[343924849,1733074252385,-500.0,0.0003041,3]
[343924850,1733074252394,-500.0,0.0003041,3]
[343924851,1733074252403,-500.0,0.0003041,3]
[343924852,1733074252412,-500.0,0.0003041,3]
[343924853,1733074252422,-850.13,0.0003041,3]
[343924854,1733074252431,-621.45,0.0003041,3]
[343924855,1733074252441,-627.68,0.0003041,3]
[343924856,1733074252450,-975.75,0.0003041,3]
[343924857,1733074252459,-594.46,0.0003041,3]
[343924858,1733074252469,-500.0,0.0003041,3]
[343924859,1733074252478,-1526.35,0.0003041,3]
[343924860,1733074252487,-500.0,0.0003041,3]
[343924861,1733074252497,-322.15522125,0.0003041,3]
[343924862,1733074252506,-586.78,0.0003041,3]
[343924863,1733074252516,-550.4,0.0003041,3]
[343924864,1733074252525,-500.0,0.0003041,3]
[343924865,1733074252535,-6141.8,0.0003041,3]
[343924866,1733074252544,-500.0,0.0003041,3]
[343924867,1733074252554,-512.77,0.0003041,3]
[343924868,1733074252564,-20652.31,0.0003041,3]
[343924869,1733074252573,-500.0,0.0003041,3]
[343924870,1733074252582,-500.0,0.0003041,3]
[343924871,1733074252592,-1059.54,0.0003041,3]
[343924872,1733074252602,-173.29753416,0.0003041,3]
[343924873,1733074252613,-514.96,0.0003041,3]
[343924874,1733074252622,-500.0,0.0003041,3]
[343924875,1733074252631,-3190.15,0.0003041,3]
[343924876,1733074252640,-500.0,0.0003041,3]
[343924877,1733074252650,-2621.93,0.0003041,3]
[343924878,1733074252659,-500.0,0.0003041,3]
[343924879,1733074252668,-704.53,0.0003041,3]
[343924880,1733074252678,-642.14,0.0003041,3]
[343924881,1733074252687,-436.26917524,0.0003041,3]
[343924882,1733074252696,-151.0,0.0003041,15]
[343924883,1733074252705,-500.0,0.0003041,3]
[343924884,1733074252715,-921.75613053,0.00030474,7]
[343924885,1733074252724,-921.75613053,0.00030474,7]
[343924886,1733074252733,-1490631.72168771,0.00030474,10]
[343924888,1733074444334,164.830262,0.00013973,2]
[343924902,1733075212283,164.693518,0.00013973,2]
[343924912,1733075364151,-5000.0,0.00019767,2]
[343924913,1733075364173,-5000.0,0.00019967,2]
[343924914,1733075364194,-300.0,0.0002089,2]
[343924915,1733075364215,-1255.06444483,0.0002089,2]
[343924974,1733075432173,-4845.15316526,0.00020474,2]
[343925016,1733075437971,-154.84683474,0.00020474,2]
[343925017,1733075437980,-5000.0,0.00020681,2]
[343925018,1733075437991,-300.0,0.00020888,2]
[343925019,1733075438000,-4494.0,0.00020888,2]
[343925020,1733075438010,-300.0,0.00020889,2]
[343925022,1733075438019,-1521.71321941,0.00020897,2]
[343925024,1733075438029,-219.21994584,0.00021175,2]
[343925025,1733075438041,-360.90888916,0.00021175,2]
[343925027,1733075438063,-164.693518,0.00021209,2]
[343925028,1733075438073,-1009.5570647,0.00021383,2]
[343925029,1733075438082,-650.89104148,0.00021907,2]
[343925030,1733075438094,-634.41566272,0.00021907,2]
[343925031,1733075438104,-513.0,0.00022,2]
[343925032,1733075438113,-513.0,0.00022192,2]
[343925033,1733075438123,-420.0,0.00022724,2]
[343925034,1733075438133,-184.55611,0.00022869,2]
[343925035,1733075438142,-420.0,0.00022978,2]
[343925036,1733075438152,-513.0,0.00023014,2]
[343925037,1733075438161,-494.21310361,0.00024036,2]
[343925038,1733075438170,-10284.68251664,0.00024037,2]
[343925039,1733075438183,-599.98798803,0.00024037,2]
[343925041,1733075438386,-14015.32949533,0.00024037,2]
[343925042,1733075438395,-4424.6209585,0.00024064,2]
[343925044,1733075438405,-516.0,0.00024164,2]
[343925045,1733075438415,-174.14310402,0.00024246,2]
[343925046,1733075438423,-272.0,0.00024549,2]
[343925047,1733075438434,-803.8051069,0.00024631,2]
[343925048,1733075438443,-284.0,0.00024722,2]
[343925049,1733075438453,-1149.9422608,0.00024787,2]
[343925050,1733075438462,-4424.62095843,0.00024972,2]
[343925051,1733075438471,-184.55611,0.00025276,2]
[343925052,1733075438481,-300.0,0.00025276,2]
[343925053,1733075438490,-272.0,0.00025457,2]
[343925054,1733075438499,-513.0,0.00025775,2]
[343925055,1733075438509,-4424.62095843,0.00025879,2]
[343925056,1733075438518,-246.58117768,0.00026327,2]
[343925057,1733075438527,-272.0,0.00026365,2]
[343925058,1733075438536,-155.35141931,0.0002648,2]
[343925059,1733075438546,-4424.62095843,0.00026787,2]
[343925060,1733075438556,-769.82599608,0.00027173,2]
[343925061,1733075438565,-272.0,0.00027274,2]
[343925062,1733075438575,-165.311138,0.00027313,2]
[343925063,1733075438587,-172.095175,0.00027313,2]
[343925064,1733075438597,-169.870266,0.00027313,2]
[343925065,1733075438606,-513.0,0.00027386,2]
[343925066,1733075438615,-177.07,0.00027387,10]
[343925067,1733075438625,-885.35,0.00027387,10]
[343925068,1733075438634,-457.4978348,0.00027395,2]
[343925069,1733075438643,-500.0,0.00027395,2]
[343925070,1733075438654,-500.0,0.00027395,2]
[343925071,1733075438662,-155.82215627,0.00027395,2]
[343925072,1733075438672,-500.0,0.00027395,2]
[343925073,1733075438682,-500.0,0.00027395,2]
[343925074,1733075438691,-353.07978111,0.00027395,2]
[343925075,1733075438700,-267.57620041,0.00027395,2]
[343925076,1733075438710,-503.7468792,0.00027395,2]
[343925077,1733075438719,-500.0,0.00027395,2]
[343925078,1733075438728,-500.0,0.00027395,2]
[343925079,1733075438738,-500.0,0.00027395,2]
[343925080,1733075438747,-500.0,0.00027395,2]
[343925081,1733075438757,-500.0,0.00027395,2]
[343925082,1733075438766,-500.0,0.00027395,2]
[343925083,1733075438776,-500.0,0.00027395,2]
[343925084,1733075438785,-641.51292292,0.00027395,2]
[343925085,1733075438795,-500.0,0.00027395,2]
[343925086,1733075438805,-3835.29154211,0.00027396,2]
[343925087,1733075438814,-500.0,0.00027397,3]
[343925088,1733075438824,-500.0,0.00027397,3]
[343925089,1733075438833,-500.0,0.00027397,3]
[343925090,1733075438843,-500.0,0.00027397,3]
[343925091,1733075438852,-500.0,0.00027397,3]
[343925092,1733075438862,-500.0,0.00027397,3]
[343925093,1733075438871,-164.99794146,0.00027397,3]
[343925094,1733075438881,-611.99987218,0.00027397,3]
[343925095,1733075438890,-297.92549539,0.00027397,3]
[343925096,1733075438900,-500.0,0.00027397,3]
[343925097,1733075438909,-500.0,0.00027397,3]
[343925098,1733075438919,-500.0,0.00027397,3]
[343925099,1733075438929,-541.37,0.00027397,3]
[343925100,1733075438937,-500.0,0.00027397,3]
[343925101,1733075438947,-3118.41,0.00027397,3]
[343925102,1733075438957,-500.0,0.00027397,2]
[343925103,1733075438967,-500.0,0.00027397,3]
[343925104,1733075438976,-500.0,0.00027397,3]
[343925105,1733075438985,-585.18,0.00027397,3]
[343925106,1733075438995,-500.0,0.00027397,3]
[343925107,1733075439005,-500.0,0.00027397,3]
[343925108,1733075439014,-10337.96,0.00027397,3]
[343925109,1733075439024,-500.0,0.00027397,3]
[343925110,1733075439033,-399.23890258,0.00027397,3]
[343925111,1733075439043,-500.0,0.00027397,3]
[343925112,1733075439053,-458.19570315,0.00027397,3]
[343925113,1733075439062,-1652.49,0.00027397,3]
[343925114,1733075439072,-1310.96,0.00027397,3]
[343925115,1733075439082,-500.0,0.00027397,3]
[343925116,1733075439091,-500.0,0.00027397,3]
[343925117,1733075439101,-500.0,0.00027397,3]
[343925118,1733075439110,-500.0,0.00027397,3]
[343925119,1733075439120,-500.0,0.00027397,3]
[343925120,1733075439129,-500.0,0.00027397,3]
[343925121,1733075439139,-500.0,0.00027397,3]
[343925122,1733075439149,-839.67,0.00027397,3]
[343925123,1733075439160,-191.64665429,0.00027397,2]
[343925124,1733075439169,-780.75,0.000274,2]
[343925125,1733075439180,-10105.53501646,0.00027486,2]
[343925126,1733075439189,-300.0,0.000275,2]
[343925127,1733075439199,-769.82599605,0.00027573,2]
[343925128,1733075439209,-513.0,0.00027616,2]
[343925129,1733075439219,-169.870266,0.00027655,2]
[343925130,1733075439228,-500.0,0.00027671,3]
[343925131,1733075439238,-500.0,0.00027671,3]
[343925132,1733075439247,-500.0,0.00027671,3]
[343925133,1733075439257,-151.81478807,0.00027671,3]
[343925134,1733075439267,-500.0,0.00027671,3]
[343925135,1733075439277,-219.32376896,0.00027671,3]
[343925136,1733075439288,-500.0,0.00027671,3]
[343925137,1733075439297,-500.0,0.00027671,3]
[343925138,1733075439307,-356.22668136,0.00027671,3]
[343925139,1733075439316,-541.37,0.00027671,3]
[343925140,1733075439326,-3118.41,0.00027671,3]
[343925142,1733075439335,-500.0,0.00027671,3]
[343925143,1733075439345,-500.0,0.00027671,3]
[343925144,1733075439355,-585.18,0.00027671,3]
[343925145,1733075439365,-500.0,0.00027671,3]
[343925146,1733075439374,-500.0,0.00027671,3]
[343925147,1733075439384,-10337.96,0.00027671,3]
[343925148,1733075439394,-500.0,0.00027671,3]
[343925149,1733075439404,-500.0,0.00027671,3]
[343925150,1733075439414,-1652.49,0.00027671,3]
[343925151,1733075439424,-1310.96,0.00027671,3]
[343925152,1733075439435,-500.0,0.00027671,3]
[343925153,1733075439444,-500.0,0.00027671,3]
[343925154,1733075439454,-500.0,0.00027671,3]
[343925155,1733075439463,-500.0,0.00027671,3]
[343925156,1733075439473,-500.0,0.00027671,3]
[343925157,1733075439483,-500.0,0.00027671,3]
[343925158,1733075439492,-500.0,0.00027671,3]
[343925159,1733075439502,-839.67,0.00027671,3]
[343925160,1733075439586,-4424.62095843,0.00027694,2]
[343925161,1733075439614,-155.01757097,0.00027804,2]
[343925162,1733075439624,-411.71669098,0.00027885,2]
[343925163,1733075439634,-10105.53501646,0.00027886,2]
[343925164,1733075439643,-187.96,0.000279,31]
[343925165,1733075439653,-187.96,0.000279,31]
[343925166,1733075439663,-187.96,0.000279,31]
[343925167,1733075439674,-187.96,0.000279,31]
[343925168,1733075439685,-187.96,0.000279,31]
[343925169,1733075439694,-187.96,0.000279,31]
[343925170,1733075439704,-187.96,0.000279,31]
[343925171,1733075439713,-187.96,0.000279,31]
[343925173,1733075439723,-187.96,0.000279,31]
[343925174,1733075439732,-187.96,0.000279,31]
[343925175,1733075439741,-187.96,0.000279,31]
[343925176,1733075439751,-187.96,0.000279,31]
[343925177,1733075439760,-500.0,0.00027945,3]
[343925179,1733075439770,-500.0,0.00027945,3]
[343925180,1733075439780,-500.0,0.00027945,3]
[343925181,1733075439789,-500.0,0.00027945,3]
[343925182,1733075439799,-500.0,0.00027945,3]
[343925183,1733075439809,-500.0,0.00027945,3]
[343925184,1733075439819,-541.37,0.00027945,3]
[343925185,1733075439828,-3118.41,0.00027945,3]
[343925186,1733075439837,-500.0,0.00027945,3]
[343925187,1733075439846,-500.0,0.00027945,3]
[343925188,1733075439856,-585.18,0.00027945,3]
[343925189,1733075439866,-500.0,0.00027945,3]
[343925190,1733075439878,-10337.96,0.00027945,3]
[343925191,1733075439887,-500.0,0.00027945,3]
[343925192,1733075439897,-500.0,0.00027945,3]
[343925193,1733075439906,-500.0,0.00027945,3]
[343925194,1733075439916,-1652.49,0.00027945,3]
[343925195,1733075439927,-1310.96,0.00027945,3]
[343925196,1733075439936,-500.0,0.00027945,3]
[343925197,1733075439946,-500.0,0.00027945,3]
[343925198,1733075439956,-500.0,0.00027945,3]
[343925199,1733075439965,-500.0,0.00027945,3]